[Event "Titled Tuesday Blitz January 10 Early 2023"]
[White "Fayzullaev, Akmal"]
[Black "Chos, Alexey"]
[WhiteFideId "14200554"]
[BlackFideId "14117762"]
[WhiteElo "2301"]
[BlackElo "2234"]
[Result "1-0"]
[Round "04"]
[TimeControl "180+1"]
[Date "2023.01.10"]
[WhiteClock "0:00:18"]
[BlackClock "0:00:01"]

1. e4 {[%clk 0:02:58]}  c5 {[%clk 0:02:59]} 2. Nf3 {[%clk 0:02:55]}  d6 {[%clk 0:02:58]} 3. Nc3 {[%clk 0:02:55]}  Nc6 {[%clk 0:02:53]} 4. d4 {[%clk 0:02:54]}  cxd4 {[%clk 0:02:46]} 5. Nxd4 {[%clk 0:02:54]}  Nf6 {[%clk 0:02:34]} 6. Bc4 {[%clk 0:02:54]}  e6 {[%clk 0:02:32]} 7. a3 {[%clk 0:02:52]}  a6 {[%clk 0:02:30]} 8. Ba2 {[%clk 0:02:52]}  Be7 {[%clk 0:02:30]} 9. O-O {[%clk 0:02:49]}  O-O {[%clk 0:02:30]} 10. Kh1 {[%clk 0:02:49]}  Bd7 {[%clk 0:02:29]} 11. f4 {[%clk 0:02:49]}  Rc8 {[%clk 0:02:29]} 12. f5 {[%clk 0:02:48]}  Nxd4 {[%clk 0:02:27]} 13. Qxd4 {[%clk 0:02:47]}  e5 {[%clk 0:02:27]} 14. Qd3 {[%clk 0:02:45]}  Bc6 {[%clk 0:02:24]} 15. Bg5 {[%clk 0:02:38]}  Qb6 {[%clk 0:02:12]} 16. Bxf6 {[%clk 0:02:15]}  Bxf6 {[%clk 0:02:07]} 17. Rab1 {[%clk 0:02:13]}  Rfd8 {[%clk 0:01:59]} 18. Nd5 {[%clk 0:02:08]}  Bxd5 {[%clk 0:01:57]} 19. Bxd5 {[%clk 0:02:09]}  Qc7 {[%clk 0:01:51]} 20. c3 {[%clk 0:02:04]}  b5 {[%clk 0:01:51]} 21. g3 {[%clk 0:01:54]}  Qc5 {[%clk 0:01:50]} 22. h4 {[%clk 0:01:49]}  a5 {[%clk 0:01:47]} 23. Kh2 {[%clk 0:01:32]}  b4 {[%clk 0:01:45]} 24. axb4 {[%clk 0:01:28]}  axb4 {[%clk 0:01:46]} 25. c4 {[%clk 0:01:29]}  Qd4 {[%clk 0:01:44]} 26. Qf3 {[%clk 0:01:23]}  Rc7 {[%clk 0:01:06]} 27. Kh3 {[%clk 0:01:08]}  Ra7 {[%clk 0:00:48]} 28. g4 {[%clk 0:01:07]}  h6 {[%clk 0:00:42]} 29. Rg1 {[%clk 0:01:00]}  Qd2 {[%clk 0:00:37]} 30. Rg2 {[%clk 0:00:42]}  Qf4 {[%clk 0:00:21]} 31. Qd3 {[%clk 0:00:38]}  Bxh4 {[%clk 0:00:06]} 32. Kxh4 {[%clk 0:00:34]}  h5 {[%clk 0:00:06]} 33. Rf1 {[%clk 0:00:30]}  Qh6 {[%clk 0:00:05]} 34. g5 {[%clk 0:00:30]}  Qh8 {[%clk 0:00:05]} 35. g6 {[%clk 0:00:29]}  Qh6 {[%clk 0:00:05]} 36. Bxf7+ {[%clk 0:00:28]}  Kf8 {[%clk 0:00:06]} 37. c5 {[%clk 0:00:26]}  Ke7 {[%clk 0:00:06]} 38. Qd5 {[%clk 0:00:21]}  Qe3 {[%clk 0:00:02]} 39. Qe6+ {[%clk 0:00:19]}  Kf8 {[%clk 0:00:03]} 40. f6 {[%clk 0:00:19]}  Qxe4+ {[%clk 0:00:02]} 41. Kh3 {[%clk 0:00:18]}  Qe3+ {[%clk 0:00:02]} 42. Kh2 {[%clk 0:00:17]}  Qg5 {[%clk 0:00:01]} 43. fxg7+ {[%clk 0:00:17]}  Kxg7 {[%clk 0:00:01]} 44. Rxg5 {[%clk 0:00:18]} 1-0


[Site "https://www.chess.com"]

[Event "Titled Tuesday Blitz January 10 Early 2023"]
[White "Bychkov, Vladimir"]
[Black "Danielyan, Vahe"]
[WhiteFideId "24151513"]
[BlackFideId "13304828"]
[WhiteElo "2197"]
[BlackElo "2423"]
[Result "0-1"]
[Round "04"]
[TimeControl "180+1"]
[Date "2023.01.10"]
[WhiteClock "0:00:13"]
[BlackClock "0:00:56"]

1. d4 {[%clk 0:03:00]}  d5 {[%clk 0:02:57]} 2. c4 {[%clk 0:03:00]}  e6 {[%clk 0:02:58]} 3. Nc3 {[%clk 0:03:00]}  c5 {[%clk 0:02:58]} 4. cxd5 {[%clk 0:02:59]}  cxd4 {[%clk 0:02:58]} 5. Qa4+ {[%clk 0:02:58]}  Bd7 {[%clk 0:02:58]} 6. Qxd4 {[%clk 0:02:58]}  exd5 {[%clk 0:02:59]} 7. Qxd5 {[%clk 0:02:58]}  Nc6 {[%clk 0:02:56]} 8. Nf3 {[%clk 0:02:56]}  Nf6 {[%clk 0:02:56]} 9. Qd1 {[%clk 0:02:56]}  Bc5 {[%clk 0:02:56]} 10. e3 {[%clk 0:02:55]}  Qe7 {[%clk 0:02:55]} 11. Bd3 {[%clk 0:02:53]}  O-O-O {[%clk 0:02:51]} 12. Qe2 {[%clk 0:02:48]}  Nb4 {[%clk 0:02:39]} 13. Bb1 {[%clk 0:02:41]}  Kb8 {[%clk 0:02:21]} 14. O-O {[%clk 0:02:38]}  g5 {[%clk 0:02:21]} 15. a3 {[%clk 0:02:38]}  Nc6 {[%clk 0:02:07]} 16. b4 {[%clk 0:02:38]}  Bd6 {[%clk 0:02:06]} 17. b5 {[%clk 0:02:38]}  Ne5 {[%clk 0:02:05]} 18. Bb2 {[%clk 0:02:26]}  g4 {[%clk 0:02:01]} 19. Nd4 {[%clk 0:02:17]}  Rhg8 {[%clk 0:01:59]} 20. Bf5 {[%clk 0:02:13]}  Nf3+ {[%clk 0:01:57]} 21. Nxf3 {[%clk 0:02:04]}  gxf3 {[%clk 0:01:56]} 22. Qxf3 {[%clk 0:02:03]}  Qe5 {[%clk 0:01:56]} 23. g3 {[%clk 0:01:47]}  Bxf5 {[%clk 0:01:52]} 24. Na4 {[%clk 0:01:40]}  Qe4 {[%clk 0:01:38]} 25. Qxe4 {[%clk 0:01:30]}  Nxe4 {[%clk 0:01:39]} 26. Rfd1 {[%clk 0:01:24]}  Nc5 {[%clk 0:01:33]} 27. Nxc5 {[%clk 0:01:11]}  Bxc5 {[%clk 0:01:33]} 28. Be5+ {[%clk 0:01:10]}  Kc8 {[%clk 0:01:33]} 29. Rdc1 {[%clk 0:01:07]}  b6 {[%clk 0:01:33]} 30. a4 {[%clk 0:01:03]}  Rd5 {[%clk 0:01:32]} 31. Bf4 {[%clk 0:01:00]}  Rgd8 {[%clk 0:01:30]} 32. a5 {[%clk 0:01:00]}  Bg4 {[%clk 0:01:28]} 33. axb6 {[%clk 0:00:59]}  axb6 {[%clk 0:01:29]} 34. h3 {[%clk 0:00:55]}  Rd1+ {[%clk 0:01:26]} 35. Kh2 {[%clk 0:00:55]}  Rxc1 {[%clk 0:01:24]} 36. Rxc1 {[%clk 0:00:56]}  Bf3 {[%clk 0:01:22]} 37. g4 {[%clk 0:00:56]}  Rd1 {[%clk 0:01:21]} 38. Rc3 {[%clk 0:00:51]}  Kd7 {[%clk 0:01:13]} 39. Kg3 {[%clk 0:00:51]}  Bd5 {[%clk 0:01:13]} 40. f3 {[%clk 0:00:41]}  Rb1 {[%clk 0:01:13]} 41. e4 {[%clk 0:00:40]}  Be6 {[%clk 0:01:09]} 42. Rd3+ {[%clk 0:00:41]}  Kc8 {[%clk 0:01:08]} 43. Bd2 {[%clk 0:00:33]}  Rxb5 {[%clk 0:01:08]} 44. f4 {[%clk 0:00:33]}  Rb2 {[%clk 0:01:07]} 45. f5 {[%clk 0:00:33]}  Bc4 {[%clk 0:01:08]} 46. Rc3 {[%clk 0:00:30]}  Rxd2 {[%clk 0:01:04]} 47. Rxc4 {[%clk 0:00:30]}  Kc7 {[%clk 0:01:04]} 48. g5 {[%clk 0:00:29]}  Kd6 {[%clk 0:01:04]} 49. Kf4 {[%clk 0:00:26]}  b5 {[%clk 0:01:03]} 50. e5+ {[%clk 0:00:26]}  Kd5 {[%clk 0:01:03]} 51. Rc1 {[%clk 0:00:26]}  b4 {[%clk 0:01:02]} 52. e6 {[%clk 0:00:25]}  fxe6 {[%clk 0:01:02]} 53. g6 {[%clk 0:00:25]}  hxg6 {[%clk 0:01:01]} 54. fxg6 {[%clk 0:00:26]}  b3 {[%clk 0:00:59]} 55. Kf3 {[%clk 0:00:18]}  b2 {[%clk 0:00:58]} 56. Rb1 {[%clk 0:00:18]}  Bd4 {[%clk 0:00:58]} 57. h4 {[%clk 0:00:18]}  Rc2 {[%clk 0:00:56]} 58. h5 {[%clk 0:00:18]}  Rc1 {[%clk 0:00:55]} 59. Rxb2 {[%clk 0:00:14]}  Bxb2 {[%clk 0:00:56]} 60. h6 {[%clk 0:00:15]}  Rg1 {[%clk 0:00:56]} 61. g7 {[%clk 0:00:13]}  Bxg7 {[%clk 0:00:56]} 0-1


[Site "https://www.chess.com"]

[Event "Titled Tuesday Blitz January 10 Early 2023"]
[White "Parpiev, Isaak"]
[Black "Degtiarev, Evgeny"]
[WhiteFideId "34281576"]
[BlackFideId "4149610"]
[WhiteElo "2028"]
[BlackElo "2284"]
[Result "0-1"]
[Round "04"]
[TimeControl "180+1"]
[Date "2023.01.10"]
[WhiteClock "0:00:01"]
[BlackClock "0:00:05"]

1. d4 {[%clk 0:03:00]}  d5 {[%clk 0:02:58]} 2. c4 {[%clk 0:03:00]}  c6 {[%clk 0:02:58]} 3. Nc3 {[%clk 0:03:00]}  Nf6 {[%clk 0:02:57]} 4. Nf3 {[%clk 0:02:59]}  a6 {[%clk 0:02:57]} 5. c5 {[%clk 0:02:57]}  Bg4 {[%clk 0:02:53]} 6. e3 {[%clk 0:02:56]}  Nbd7 {[%clk 0:02:48]} 7. h3 {[%clk 0:02:56]}  Bxf3 {[%clk 0:02:46]} 8. Qxf3 {[%clk 0:02:56]}  e5 {[%clk 0:02:47]} 9. g4 {[%clk 0:02:56]}  h6 {[%clk 0:02:34]} 10. Bd2 {[%clk 0:02:50]}  b6 {[%clk 0:02:06]} 11. cxb6 {[%clk 0:02:47]}  Qxb6 {[%clk 0:01:48]} 12. Na4 {[%clk 0:02:45]}  Qa7 {[%clk 0:01:49]} 13. Rc1 {[%clk 0:02:31]}  Ne4 {[%clk 0:01:26]} 14. Ba5 {[%clk 0:02:13]}  exd4 {[%clk 0:01:19]} 15. Rxc6 {[%clk 0:01:42]}  Ne5 {[%clk 0:01:14]} 16. Qf5 {[%clk 0:01:17]}  Nxc6 {[%clk 0:01:12]} 17. Qxd5 {[%clk 0:01:17]}  Nxa5 {[%clk 0:01:03]} 18. Qxa5 {[%clk 0:01:16]}  Be7 {[%clk 0:00:52]} 19. Bg2 {[%clk 0:01:13]}  Rb8 {[%clk 0:00:48]} 20. O-O {[%clk 0:01:06]}  Nf6 {[%clk 0:00:40]} 21. Bc6+ {[%clk 0:01:06]}  Kf8 {[%clk 0:00:39]} 22. exd4 {[%clk 0:00:55]}  Qxd4 {[%clk 0:00:37]} 23. Nc3 {[%clk 0:00:49]}  g6 {[%clk 0:00:30]} 24. Rd1 {[%clk 0:00:48]}  Qb4 {[%clk 0:00:27]} 25. Qe5 {[%clk 0:00:39]}  Kg7 {[%clk 0:00:26]} 26. Nd5 {[%clk 0:00:36]}  Qd6 {[%clk 0:00:17]} 27. Qxd6 {[%clk 0:00:31]}  Bxd6 {[%clk 0:00:17]} 28. Nxf6 {[%clk 0:00:32]}  Kxf6 {[%clk 0:00:17]} 29. Rxd6+ {[%clk 0:00:32]}  Kg7 {[%clk 0:00:17]} 30. b3 {[%clk 0:00:28]}  Rhd8 {[%clk 0:00:17]} 31. Rxd8 {[%clk 0:00:26]}  Rxd8 {[%clk 0:00:18]} 32. Bb7 {[%clk 0:00:09]}  a5 {[%clk 0:00:18]} 33. Ba6 {[%clk 0:00:04]}  Rd2 {[%clk 0:00:17]} 34. a4 {[%clk 0:00:04]}  Kf6 {[%clk 0:00:17]} 35. Bc4 {[%clk 0:00:05]}  Ke7 {[%clk 0:00:15]} 36. Kg2 {[%clk 0:00:05]}  f6 {[%clk 0:00:15]} 37. Kg3 {[%clk 0:00:05]}  Kd6 {[%clk 0:00:15]} 38. f4 {[%clk 0:00:05]}  Kc5 {[%clk 0:00:15]} 39. h4 {[%clk 0:00:05]}  Kd4 {[%clk 0:00:15]} 40. g5 {[%clk 0:00:05]}  hxg5 {[%clk 0:00:15]} 41. fxg5 {[%clk 0:00:05]}  fxg5 {[%clk 0:00:15]} 42. hxg5 {[%clk 0:00:06]}  Ke5 {[%clk 0:00:15]} 43. Kg4 {[%clk 0:00:05]}  Rd4+ {[%clk 0:00:14]} 44. Kf3 {[%clk 0:00:04]}  Kf5 {[%clk 0:00:15]} 45. Ke3 {[%clk 0:00:04]}  Rd6 {[%clk 0:00:15]} 46. Bd3+ {[%clk 0:00:02]}  Kxg5 {[%clk 0:00:15]} 47. Be4 {[%clk 0:00:01]}  Kf6 {[%clk 0:00:15]} 48. Kf4 {[%clk 0:00:01]}  g5+ {[%clk 0:00:15]} 49. Kf3 {[%clk 0:00:01]}  Rd4 {[%clk 0:00:15]} 50. Bc6 {[%clk 0:00:01]}  Rb4 {[%clk 0:00:15]} 51. Bd5 {[%clk 0:00:01]}  Ke5 {[%clk 0:00:15]} 52. Bc4 {[%clk 0:00:02]}  Kf5 {[%clk 0:00:14]} 53. Bd3+ {[%clk 0:00:02]}  Kf6 {[%clk 0:00:14]} 54. Bc4 {[%clk 0:00:02]}  Rb6 {[%clk 0:00:14]} 55. Kg4 {[%clk 0:00:02]}  Rd6 {[%clk 0:00:14]} 56. Bg8 {[%clk 0:00:02]}  Rd4+ {[%clk 0:00:15]} 57. Kf3 {[%clk 0:00:02]}  g4+ {[%clk 0:00:15]} 58. Kg3 {[%clk 0:00:02]}  Kg5 {[%clk 0:00:15]} 59. Bc4 {[%clk 0:00:03]}  Re4 {[%clk 0:00:15]} 60. Bd5 {[%clk 0:00:02]}  Re3+ {[%clk 0:00:15]} 61. Kf2 {[%clk 0:00:02]}  Rc3 {[%clk 0:00:15]} 62. Bc4 {[%clk 0:00:02]}  Kf4 {[%clk 0:00:16]} 63. Bd5 {[%clk 0:00:03]}  g3+ {[%clk 0:00:16]} 64. Ke2 {[%clk 0:00:04]}  Re3+ {[%clk 0:00:16]} 65. Kd2 {[%clk 0:00:04]}  Re5 {[%clk 0:00:15]} 66. Ba8 {[%clk 0:00:02]}  Kg4 {[%clk 0:00:15]} 67. Kc3 {[%clk 0:00:02]}  Kh3 {[%clk 0:00:14]} 68. b4 {[%clk 0:00:03]}  axb4+ {[%clk 0:00:12]} 69. Kxb4 {[%clk 0:00:04]}  Re8 {[%clk 0:00:10]} 70. Bd5 {[%clk 0:00:03]}  Rb8+ {[%clk 0:00:09]} 71. Kc4 {[%clk 0:00:03]}  g2 {[%clk 0:00:04]} 72. Bxg2+ {[%clk 0:00:03]}  Kxg2 {[%clk 0:00:05]} 73. a5 {[%clk 0:00:03]}  Kf3 {[%clk 0:00:05]} 74. a6 {[%clk 0:00:02]}  Rb6 {[%clk 0:00:05]} 75. a7 {[%clk 0:00:01]}  Ra6 {[%clk 0:00:05]} 0-1


[Site "https://www.chess.com"]

[Event "Titled Tuesday Blitz January 10 Early 2023"]
[White "Ankerst, Mihael"]
[Black "Gheorghiu, Calin"]
[WhiteFideId "14602369"]
[BlackFideId "1200305"]
[WhiteElo "2307"]
[BlackElo "2223"]
[Result "0-1"]
[Round "04"]
[TimeControl "180+1"]
[Date "2023.01.10"]
[WhiteClock "0:00:37"]
[BlackClock "0:00:03"]

1. e4 {[%clk 0:02:58]}  b6 {[%clk 0:02:59]} 2. d4 {[%clk 0:02:58]}  Bb7 {[%clk 0:02:57]} 3. Bd3 {[%clk 0:02:59]}  g6 {[%clk 0:02:52]} 4. Qe2 {[%clk 0:02:59]}  Bg7 {[%clk 0:02:50]} 5. Be3 {[%clk 0:02:59]}  e6 {[%clk 0:02:48]} 6. Nc3 {[%clk 0:02:59]}  Ne7 {[%clk 0:02:42]} 7. f4 {[%clk 0:02:58]}  d5 {[%clk 0:02:37]} 8. e5 {[%clk 0:02:58]}  Nd7 {[%clk 0:02:30]} 9. Nd1 {[%clk 0:02:56]}  c5 {[%clk 0:02:26]} 10. c3 {[%clk 0:02:56]}  f6 {[%clk 0:02:01]} 11. Nf3 {[%clk 0:02:56]}  O-O {[%clk 0:01:59]} 12. O-O {[%clk 0:02:56]}  Rc8 {[%clk 0:01:52]} 13. Nf2 {[%clk 0:02:54]}  f5 {[%clk 0:01:40]} 14. g4 {[%clk 0:02:51]}  Nb8 {[%clk 0:01:29]} 15. h4 {[%clk 0:02:41]}  Nbc6 {[%clk 0:01:25]} 16. h5 {[%clk 0:02:40]}  cxd4 {[%clk 0:01:25]} 17. cxd4 {[%clk 0:02:39]}  Nb4 {[%clk 0:01:23]} 18. Ng5 {[%clk 0:02:26]}  Qd7 {[%clk 0:01:15]} 19. hxg6 {[%clk 0:02:25]}  Nxg6 {[%clk 0:00:41]} 20. gxf5 {[%clk 0:02:20]}  exf5 {[%clk 0:00:34]} 21. Qh5 {[%clk 0:02:17]}  h6 {[%clk 0:00:27]} 22. Qxg6 {[%clk 0:02:06]}  hxg5 {[%clk 0:00:27]} 23. fxg5 {[%clk 0:01:56]}  Nxd3 {[%clk 0:00:22]} 24. Nxd3 {[%clk 0:01:56]}  Ba6 {[%clk 0:00:22]} 25. Rad1 {[%clk 0:01:43]}  Rc2 {[%clk 0:00:15]} 26. Nb4 {[%clk 0:01:35]}  Bxf1 {[%clk 0:00:12]} 27. Nxc2 {[%clk 0:01:34]}  Be2 {[%clk 0:00:09]} 28. Rc1 {[%clk 0:01:29]}  f4 {[%clk 0:00:07]} 29. e6 {[%clk 0:01:25]}  Qd6 {[%clk 0:00:07]} 30. Bf2 {[%clk 0:01:19]}  Bg4 {[%clk 0:00:06]} 31. Re1 {[%clk 0:01:17]}  Bf5 {[%clk 0:00:06]} 32. Qh5 {[%clk 0:01:13]}  Bxc2 {[%clk 0:00:05]} 33. g6 {[%clk 0:01:12]}  Re8 {[%clk 0:00:02]} 34. Qg4 {[%clk 0:00:54]}  Be4 {[%clk 0:00:02]} 35. Bh4 {[%clk 0:00:35]}  Qxe6 {[%clk 0:00:02]} 36. Qxf4 {[%clk 0:00:35]}  Qxg6+ {[%clk 0:00:02]} 37. Qg5 {[%clk 0:00:35]}  Qxg5+ {[%clk 0:00:02]} 38. Bxg5 {[%clk 0:00:36]}  Bxd4+ {[%clk 0:00:03]} 39. Kh2 {[%clk 0:00:37]}  Be5+ {[%clk 0:00:03]} 0-1


[Site "https://www.chess.com"]

[Event "Titled Tuesday Blitz January 10 Early 2023"]
[White "Pein, Jonathan"]
[Black "De Souza, Cristiano Gomes"]
[WhiteFideId "417092"]
[BlackFideId "2151758"]
[WhiteElo "2151"]
[BlackElo "2068"]
[Result "1-0"]
[Round "04"]
[TimeControl "180+1"]
[Date "2023.01.10"]
[WhiteClock "0:00:20"]
[BlackClock "0:00:19"]

1. d4 {[%clk 0:03:00]}  Nf6 {[%clk 0:02:59]} 2. c4 {[%clk 0:02:57]}  g6 {[%clk 0:02:59]} 3. Nc3 {[%clk 0:02:57]}  Bg7 {[%clk 0:03:00]} 4. e3 {[%clk 0:02:52]}  O-O {[%clk 0:02:59]} 5. Nf3 {[%clk 0:02:53]}  d5 {[%clk 0:02:59]} 6. b3 {[%clk 0:02:47]}  c6 {[%clk 0:02:59]} 7. Bd3 {[%clk 0:02:45]}  Nbd7 {[%clk 0:02:53]} 8. O-O {[%clk 0:02:45]}  e5 {[%clk 0:02:50]} 9. dxe5 {[%clk 0:02:43]}  Ng4 {[%clk 0:02:50]} 10. cxd5 {[%clk 0:02:42]}  Ndxe5 {[%clk 0:02:48]} 11. Nxe5 {[%clk 0:02:31]}  Bxe5 {[%clk 0:02:41]} 12. h3 {[%clk 0:02:10]}  Nh2 {[%clk 0:02:40]} 13. Bb2 {[%clk 0:02:05]}  Nxf1 {[%clk 0:02:38]} 14. Bxf1 {[%clk 0:02:06]}  cxd5 {[%clk 0:02:32]} 15. Rc1 {[%clk 0:02:06]}  Be6 {[%clk 0:02:29]} 16. Ba3 {[%clk 0:02:03]}  Re8 {[%clk 0:02:27]} 17. Nb5 {[%clk 0:02:04]}  a6 {[%clk 0:02:22]} 18. Nd4 {[%clk 0:02:02]}  Rc8 {[%clk 0:02:21]} 19. Nxe6 {[%clk 0:01:46]}  fxe6 {[%clk 0:02:11]} 20. Rc2 {[%clk 0:01:35]}  Rxc2 {[%clk 0:02:04]} 21. Qxc2 {[%clk 0:01:35]}  Qa5 {[%clk 0:01:46]} 22. Bc1 {[%clk 0:01:16]}  Qc3 {[%clk 0:01:30]} 23. Qxc3 {[%clk 0:01:04]}  Bxc3 {[%clk 0:01:29]} 24. Bd3 {[%clk 0:01:05]}  Kf7 {[%clk 0:01:28]} 25. Kf1 {[%clk 0:01:06]}  e5 {[%clk 0:01:28]} 26. Ke2 {[%clk 0:01:03]}  Ke6 {[%clk 0:01:28]} 27. f3 {[%clk 0:01:01]}  Rc8 {[%clk 0:01:27]} 28. e4 {[%clk 0:01:01]}  d4 {[%clk 0:01:24]} 29. Bc4+ {[%clk 0:01:00]}  Kf6 {[%clk 0:01:22]} 30. h4 {[%clk 0:01:00]}  Kg7 {[%clk 0:01:20]} 31. f4 {[%clk 0:00:58]}  Re8 {[%clk 0:01:09]} 32. Kd3 {[%clk 0:00:54]}  b5 {[%clk 0:01:04]} 33. Bd5 {[%clk 0:00:54]}  h6 {[%clk 0:00:55]} 34. fxe5 {[%clk 0:00:42]}  Rxe5 {[%clk 0:00:55]} 35. Bf4 {[%clk 0:00:43]}  Re7 {[%clk 0:00:54]} 36. e5 {[%clk 0:00:43]}  g5 {[%clk 0:00:50]} 37. hxg5 {[%clk 0:00:43]}  hxg5 {[%clk 0:00:51]} 38. Bg3 {[%clk 0:00:31]}  Kg6 {[%clk 0:00:50]} 39. Be4+ {[%clk 0:00:22]}  Kh5 {[%clk 0:00:50]} 40. Bf5 {[%clk 0:00:20]}  a5 {[%clk 0:00:45]} 41. e6 {[%clk 0:00:20]}  a4 {[%clk 0:00:44]} 42. Bd6 {[%clk 0:00:20]}  Re8 {[%clk 0:00:44]} 43. e7 {[%clk 0:00:21]}  axb3 {[%clk 0:00:43]} 44. axb3 {[%clk 0:00:21]}  Kh4 {[%clk 0:00:26]} 45. g3+ {[%clk 0:00:19]}  Kh5 {[%clk 0:00:26]} 46. Bd7 {[%clk 0:00:19]}  Ra8 {[%clk 0:00:21]} 47. e8=Q+ {[%clk 0:00:19]}  Rxe8 {[%clk 0:00:20]} 48. Bxe8+ {[%clk 0:00:20]}  Kg4 {[%clk 0:00:20]} 49. Bd7+ {[%clk 0:00:19]}  Kf3 {[%clk 0:00:20]} 50. Bxb5 {[%clk 0:00:20]}  Be1 {[%clk 0:00:19]} 51. Bc6+ {[%clk 0:00:19]}  Kg4 {[%clk 0:00:19]} 52. Kxd4 {[%clk 0:00:19]}  Bxg3 {[%clk 0:00:19]} 53. Bxg3 {[%clk 0:00:20]}  Kxg3 {[%clk 0:00:19]} 54. b4 {[%clk 0:00:20]}  Kf4 {[%clk 0:00:19]} 55. b5 {[%clk 0:00:20]}  g4 {[%clk 0:00:19]} 56. b6 {[%clk 0:00:20]} 1-0


[Site "https://www.chess.com"]

[Event "Titled Tuesday Blitz January 10 Early 2023"]
[White "Buchenau, Frank"]
[Black "Lakshmi C"]
[WhiteFideId "4604350"]
[BlackFideId "25035347"]
[WhiteElo "2157"]
[BlackElo "1942"]
[Result "1-0"]
[Round "04"]
[TimeControl "180+1"]
[Date "2023.01.10"]
[WhiteClock "0:00:16"]
[BlackClock "0:00:04"]

1. e4 {[%clk 0:03:00]}  c5 {[%clk 0:02:53]} 2. Nf3 {[%clk 0:03:00]}  Nc6 {[%clk 0:02:53]} 3. Bb5 {[%clk 0:03:00]}  g6 {[%clk 0:02:53]} 4. Bxc6 {[%clk 0:03:00]}  dxc6 {[%clk 0:02:53]} 5. d3 {[%clk 0:03:00]}  Bg7 {[%clk 0:02:53]} 6. O-O {[%clk 0:03:00]}  Nf6 {[%clk 0:02:52]} 7. a4 {[%clk 0:02:59]}  Nd7 {[%clk 0:02:51]} 8. Nc3 {[%clk 0:02:56]}  e5 {[%clk 0:02:51]} 9. Be3 {[%clk 0:02:52]}  Qe7 {[%clk 0:02:50]} 10. a5 {[%clk 0:02:43]}  Nf8 {[%clk 0:02:43]} 11. Na4 {[%clk 0:02:32]}  Ne6 {[%clk 0:02:39]} 12. Nd2 {[%clk 0:02:28]}  Rb8 {[%clk 0:02:33]} 13. Nb3 {[%clk 0:02:12]}  b6 {[%clk 0:02:30]} 14. axb6 {[%clk 0:02:12]}  axb6 {[%clk 0:02:30]} 15. Qd2 {[%clk 0:02:03]}  h6 {[%clk 0:02:20]} 16. g3 {[%clk 0:02:01]}  g5 {[%clk 0:02:13]} 17. c3 {[%clk 0:01:57]}  O-O {[%clk 0:02:02]} 18. f4 {[%clk 0:01:55]}  gxf4 {[%clk 0:01:51]} 19. gxf4 {[%clk 0:01:54]}  exf4 {[%clk 0:01:49]} 20. Bxf4 {[%clk 0:01:53]}  Nxf4 {[%clk 0:01:48]} 21. Qxf4 {[%clk 0:01:50]}  Rb7 {[%clk 0:01:47]} 22. Kh1 {[%clk 0:01:42]}  Be6 {[%clk 0:01:29]} 23. Nd2 {[%clk 0:01:40]}  b5 {[%clk 0:01:26]} 24. Rg1 {[%clk 0:01:29]}  bxa4 {[%clk 0:01:12]} 25. Qxh6 {[%clk 0:01:16]}  f6 {[%clk 0:00:49]} 26. Rxg7+ {[%clk 0:01:15]}  Qxg7 {[%clk 0:00:49]} 27. Rg1 {[%clk 0:01:15]}  Qxg1+ {[%clk 0:00:29]} 28. Kxg1 {[%clk 0:01:16]}  Rg7+ {[%clk 0:00:25]} 29. Kf2 {[%clk 0:01:13]}  Rb8 {[%clk 0:00:20]} 30. Ke3 {[%clk 0:01:05]}  Kf7 {[%clk 0:00:19]} 31. Qh5+ {[%clk 0:01:03]}  Rg6 {[%clk 0:00:19]} 32. Nf3 {[%clk 0:00:57]}  Rb5 {[%clk 0:00:15]} 33. Nh4 {[%clk 0:00:54]}  Rxb2 {[%clk 0:00:08]} 34. Qxg6+ {[%clk 0:00:53]}  Ke7 {[%clk 0:00:08]} 35. Qg7+ {[%clk 0:00:53]}  Kd6 {[%clk 0:00:08]} 36. Qxf6 {[%clk 0:00:52]}  a3 {[%clk 0:00:07]} 37. Nf5+ {[%clk 0:00:52]}  Kc7 {[%clk 0:00:07]} 38. c4 {[%clk 0:00:27]}  Rb3 {[%clk 0:00:03]} 39. Qxe6 {[%clk 0:00:20]}  a2 {[%clk 0:00:03]} 40. Qe5+ {[%clk 0:00:20]}  Kb6 {[%clk 0:00:03]} 41. Qa1 {[%clk 0:00:19]}  Ra3 {[%clk 0:00:03]} 42. h4 {[%clk 0:00:19]}  Ka5 {[%clk 0:00:04]} 43. h5 {[%clk 0:00:19]}  Kb4 {[%clk 0:00:04]} 44. h6 {[%clk 0:00:19]}  Kb3 {[%clk 0:00:04]} 45. h7 {[%clk 0:00:19]}  Kc2 {[%clk 0:00:03]} 46. h8=Q {[%clk 0:00:18]}  Rxd3+ {[%clk 0:00:04]} 47. Kf4 {[%clk 0:00:17]}  Ra3 {[%clk 0:00:04]} 48. Qhb2+ {[%clk 0:00:16]} 1-0


[Site "https://www.chess.com"]

[Event "Titled Tuesday Blitz January 10 Early 2023"]
[White "Guo, Josh"]
[Black "Vagman, Roy"]
[WhiteFideId "2682427"]
[BlackFideId "2828995"]
[WhiteElo "2282"]
[BlackElo "2174"]
[Result "1-0"]
[Round "04"]
[TimeControl "180+1"]
[Date "2023.01.10"]
[WhiteClock "0:00:08"]
[BlackClock "0:00:02"]

1. e4 {[%clk 0:03:00]}  Nc6 {[%clk 0:02:55]} 2. Nf3 {[%clk 0:03:00]}  g6 {[%clk 0:02:55]} 3. d4 {[%clk 0:02:56]}  d6 {[%clk 0:02:56]} 4. d5 {[%clk 0:02:51]}  Nb8 {[%clk 0:02:55]} 5. Nc3 {[%clk 0:02:50]}  Bg7 {[%clk 0:02:54]} 6. Be3 {[%clk 0:02:51]}  Nf6 {[%clk 0:02:52]} 7. Qd2 {[%clk 0:02:48]}  O-O {[%clk 0:02:46]} 8. Bh6 {[%clk 0:02:46]}  Bh8 {[%clk 0:02:46]} 9. Bxf8 {[%clk 0:02:42]}  Qxf8 {[%clk 0:02:44]} 10. h3 {[%clk 0:02:26]}  Bg7 {[%clk 0:02:43]} 11. Bc4 {[%clk 0:02:19]}  a6 {[%clk 0:02:41]} 12. a4 {[%clk 0:02:18]}  Nbd7 {[%clk 0:02:40]} 13. O-O {[%clk 0:02:17]}  Nc5 {[%clk 0:02:41]} 14. Rfe1 {[%clk 0:02:14]}  Nh5 {[%clk 0:02:35]} 15. b4 {[%clk 0:01:49]}  Nd7 {[%clk 0:02:35]} 16. Rad1 {[%clk 0:01:48]}  Ne5 {[%clk 0:02:34]} 17. Be2 {[%clk 0:01:32]}  Nxf3+ {[%clk 0:02:30]} 18. Bxf3 {[%clk 0:01:31]}  Nf6 {[%clk 0:02:31]} 19. a5 {[%clk 0:01:26]}  Nd7 {[%clk 0:02:31]} 20. Bg4 {[%clk 0:01:10]}  Ne5 {[%clk 0:02:25]} 21. Bxc8 {[%clk 0:01:09]}  Rxc8 {[%clk 0:02:24]} 22. Ne2 {[%clk 0:01:00]}  c5 {[%clk 0:02:21]} 23. c3 {[%clk 0:00:48]}  Nc4 {[%clk 0:02:08]} 24. Qa2 {[%clk 0:00:44]}  cxb4 {[%clk 0:01:44]} 25. cxb4 {[%clk 0:00:44]}  Nb2 {[%clk 0:01:44]} 26. Rd2 {[%clk 0:00:30]}  Nc4 {[%clk 0:01:31]} 27. Rc2 {[%clk 0:00:30]}  Ne5 {[%clk 0:01:31]} 28. Rec1 {[%clk 0:00:22]}  Rb8 {[%clk 0:01:26]} 29. Rc7 {[%clk 0:00:21]}  f5 {[%clk 0:01:15]} 30. Qc2 {[%clk 0:00:19]}  fxe4 {[%clk 0:01:06]} 31. Qxe4 {[%clk 0:00:19]}  Bf6 {[%clk 0:00:51]} 32. R1c2 {[%clk 0:00:16]}  b6 {[%clk 0:00:41]} 33. Nf4 {[%clk 0:00:14]}  bxa5 {[%clk 0:00:40]} 34. bxa5 {[%clk 0:00:15]}  Rb1+ {[%clk 0:00:29]} 35. Kh2 {[%clk 0:00:15]}  Qh6 {[%clk 0:00:25]} 36. Ne6 {[%clk 0:00:12]}  Kf7 {[%clk 0:00:20]} 37. Nd8+ {[%clk 0:00:10]}  Kg8 {[%clk 0:00:18]} 38. Rc8 {[%clk 0:00:09]}  Qh5 {[%clk 0:00:05]} 39. Ne6+ {[%clk 0:00:08]}  Kf7 {[%clk 0:00:02]} 40. Rf8# {[%clk 0:00:08]} 1-0


[Site "https://www.chess.com"]